bitfinex-derivatives/quotes_ETHF0:USTF0_20251001
["timestamp","ask_amount","ask_price","bid_price","bid_amount"]
[1759328939361,0.4644,4321.8,4321.7,0.7735]
[1759328940260,0.22569283,4322.1,4322.0,0.1272]
[1759328940457,0.46669283,4322.1,4322.0,0.9007]
[1759328940764,1.41582283,4322.1,4322.0,0.9007]
[1759328941257,1.41582283,4322.1,4322.0,4.1085]
[1759328941258,0.00229283,4322.1,4322.0,4.1085]
[1759328941459,0.24229283,4322.1,4322.0,4.52474]
[1759328941654,0.00229283,4322.1,4322.0,9.52474]
[1759328941962,0.24229283,4322.1,4322.0,9.52474]
[1759328942154,0.24229283,4322.1,4322.0,9.1085]
[1759328942963,0.24229283,4322.1,4322.0,49.9085]
[1759328944054,0.00229283,4322.1,4322.0,49.9085]
[1759328944659,0.85892,4323.3,4323.2,0.7735]
[1759328944860,1.6228,4323.3,4323.2,0.7735]
[1759328945060,1.9363,4323.3,4323.2,0.5549]
[1759328945463,2.12098553,4323.3,4323.2,0.5549]
[1759328945665,1.88372548,4323.3,4323.2,0.5549]
[1759328945862,0.2234,4322.7,4322.6,0.7735]
[1759328946163,0.6828,4322.7,4322.6,0.7735]
[1759328948667,0.4634,4322.7,4322.6,0.7735]
[1759328948960,0.50092548,4323.3,4322.6,0.7735]
[1759328949266,0.4428,4323.2,4323.1,0.222]
[1759328949465,0.6828,4323.2,4323.1,0.5549]
[1759328949668,0.9963,4323.2,4323.1,0.5549]
[1759328950168,0.9963,4323.2,4322.6,0.3329]
[1759328950358,1.41244,4323.2,4322.6,0.3329]
[1759328950863,1.17244,4323.2,4322.6,0.3329]
[1759328951065,0.6828,4323.1,4323.0,0.5549]
[1759328951362,0.7563,4323.1,4323.0,0.5549]
[1759328951764,0.9963,4323.1,4323.0,0.5549]
[1759328951963,0.9963,4323.1,4322.6,0.3329]
[1759328951964,0.4428,4322.7,4322.6,0.3329]
[1759328952266,0.9963,4322.7,4322.6,0.5549]
[1759328952964,0.9963,4322.7,4322.6,0.7735]
[1759328954168,0.7563,4322.7,4322.6,0.7735]
[1759328954470,0.9963,4322.7,4322.6,0.7735]
[1759328954655,0.6828,4322.7,4322.6,0.7735]
[1759328955261,0.9963,4322.7,4322.6,0.5515]
[1759328955467,0.9963,4322.7,4322.5,3.335]
[1759328955468,0.7563,4322.6,4322.5,3.2078]
[1759328955862,0.7563,4322.6,4322.0,3.335]
[1759328955863,0.4428,4322.6,4322.0,3.335]
[1759328956063,0.4428,4322.2,4322.1,0.7735]
[1759328956266,0.4428,4321.7,4321.6,0.222]
[1759328956461,0.9963,4321.7,4321.6,0.5549]
[1759328957360,0.6828,4321.7,4321.6,0.7735]
[1759328958869,0.3135,4321.6,4321.5,3.6679]
[1759328959067,0.7563,4321.6,4321.5,3.5407]
[1759328959471,0.4428,4321.6,4321.5,4.1085]
[1759328959768,0.7563,4321.6,4321.5,4.1085]
[1759328959967,0.6828,4321.6,4321.5,4.1085]
[1759328960368,1.0153,4321.6,4321.5,4.1085]
[1759328961369,1.0153,4321.6,4321.5,3.9813]
[1759328962066,1.0153,4321.6,4321.5,4.1041]
[1759328964069,0.7515,4321.2,4321.1,0.5543]
[1759328964265,0.4301,4321.2,4321.1,0.7698]
[1759328964670,0.7515,4321.2,4321.1,0.7698]
[1759328965065,0.9915,4321.2,4321.1,0.7698]
[1759328965463,0.3214,4321.1,4320.9,0.0021614]
[1759328965665,0.5618,4320.5,4320.4,0.224]
[1759328965876,1.1232,4320.5,4320.4,0.224]
[1759328966472,0.98430363,4320.5,4320.3,2.99741708]
[1759328966676,0.7515,4320.4,4320.3,2.99741708]
[1759328966876,0.7515,4320.4,4320.3,3.22402755]
[1759328967074,0.7515,4320.4,4319.3,41.41615706]
[1759328967075,0.41641,4320.3,4319.3,3.2078]
[1759328967270,0.3214,4319.9,4319.3,3.2078]
[1759328967471,0.3214,4319.9,4319.8,0.224]
[1759328967472,0.7515,4319.9,4319.8,0.224]
[1759328967772,0.2064,4319.4,4319.3,3.6473]
[1759328968069,0.20889658,4319.4,4319.3,3.97948543]
[1759328968270,0.77029658,4319.4,4319.3,3.97948543]
[1759328968572,0.99399658,4319.4,4319.3,3.97948543]
[1759328969569,0.99399658,4319.4,4319.3,0.22588543]
[1759328969874,0.99399658,4319.4,4319.3,0.00188543]
[1759328970074,0.99399658,4319.4,4319.3,0.22588543]
[1759328970276,1.41048658,4319.4,4319.3,0.00188543]
[1759328970870,0.1317,4319.0,4318.2,3.2078]
[1759328971169,0.7515,4318.3,4318.2,3.4318]
[1759328971370,0.9915,4318.3,4318.2,3.4318]
[1759328971671,0.1317,4319.0,4318.2,3.9776]
[1759328971872,0.9915,4318.9,4318.8,0.7698]
[1759328972076,0.9915,4318.9,4318.8,0.224]
[1759328972269,0.9915,4318.9,4318.3,0.3303]
[1759328972270,0.2064,4318.4,4318.3,0.7698]
[1759328972475,0.3214,4318.8,4318.3,0.7698]
[1759328972677,0.1317,4319.0,4318.2,3.21010525]
[1759328972678,0.6701,4318.7,4318.6,0.4395]
[1759328972875,0.2064,4318.3,4318.2,3.76440525]
[1759328973079,0.9915,4318.3,4318.2,3.76440525]
[1759328973586,0.9915,4318.3,4318.2,0.77210525]
[1759328974180,0.9915,4318.3,4318.2,0.44180525]
[1759328974483,0.9915,4318.3,4318.2,0.00230525]
[1759328974484,10.4015,4318.3,4318.2,0.00230525]
[1759328974674,0.3214,4317.7,4317.1,3.5381]
[1759328974874,0.4301,4317.2,4317.1,3.7621]
[1759328975078,0.9915,4317.2,4317.1,3.4318]
[1759328975271,1.17182039,4317.2,4317.1,3.2078]
[1759328975677,1.17182039,4317.2,4317.1,0.00296505]
[1759328976774,0.5278,4316.2,4316.1,3.9776]
[1759328977083,0.7678,4316.2,4316.1,3.9776]
[1759328977874,0.99355893,4316.2,4316.1,3.64914011]
[1759328978076,0.99355893,4316.2,4316.1,3.20964011]
[1759328978777,0.99355893,4316.2,4316.1,0.00184011]
[1759328978778,0.75355893,4316.2,4316.1,0.00184011]
[1759328978980,37.12155893,4316.2,4316.1,0.00184011]
[1759328979288,0.99455893,4316.2,4316.1,0.77164011]
[1759328979479,0.75355893,4316.2,4316.1,3.97944011]
[1759328979786,0.24305893,4316.2,4316.1,3.97944011]
[1759328980179,0.00205893,4316.2,4316.1,3.97944011]
[1759328980483,0.24305893,4316.2,4316.1,3.97944011]
[1759328982180,0.00205893,4316.2,4316.1,3.97944011]
[1759328982577,3.2078,4317.0,4316.9,0.7698]
[1759328982779,0.3214,4317.3,4316.9,0.4395]
[1759328982978,0.241,4317.1,4317.0,0.7698]
[1759328983179,0.241,4317.1,4317.0,0.8768]
[1759328983383,0.18374074,4317.3,4317.2,0.7698]
[1759328983578,0.241,4317.3,4317.2,0.7698]
[1759328983781,0.24334212,4317.3,4317.2,3.95481]
[1759328984186,0.00234212,4317.3,4317.2,3.95481]
[1759328984682,0.17334212,4317.3,4317.2,3.95481]
[1759328985684,0.00234212,4317.3,4317.2,3.95481]
[1759328985879,0.16334212,4317.3,4317.2,3.95481]
[1759328986380,0.00234212,4317.3,4317.2,4.39431]
[1759328986684,0.13534212,4317.3,4317.2,9.39431]
[1759328987487,0.13534212,4317.3,4317.2,8.9776]
[1759328987689,0.88684212,4317.3,4317.2,3.6473]
[1759328988089,0.88684212,4317.3,4317.2,3.9776]
[1759328988290,0.24334212,4317.3,4317.2,3.9776]
[1759328988488,0.24334212,4317.3,4317.2,8.9776]
[1759328988790,0.00234212,4317.3,4317.2,8.9776]
[1759328989089,0.24334212,4317.3,4317.2,8.9776]
[1759328992189,0.18738416,4317.9,4317.8,0.4395]
[1759328992389,0.241,4317.9,4317.8,4.39425]
[1759328993094,0.3214,4318.2,4318.1,1.18642]
[1759328993289,0.56494981,4318.2,4318.1,1.18642]
[1759328994189,0.77134981,4318.2,4318.1,1.18642]
[1759328994390,0.24354981,4318.2,4318.1,0.7698]
[1759328994589,0.00254981,4318.2,4318.1,0.7698]
[1759328994787,0.24354981,4318.2,4318.1,0.7698]
[1759328995894,0.00254981,4318.2,4318.1,0.7698]
[1759328996295,0.24354981,4318.2,4318.1,0.7698]
[1759328997595,0.24354981,4318.2,4318.1,1.18642]
[1759328998494,0.00254981,4318.2,4318.1,1.18642]
[1759328999096,0.21954981,4318.2,4318.1,1.18642]
[1759328999598,0.75404981,4318.2,4318.1,1.18642]
[1759329000288,0.54644981,4318.2,4318.1,1.18642]
[1759329000492,1.94119759,4319.5,4318.1,1.18642]
[1759329000493,0.2076,4319.2,4319.1,1.14252]
[1759329000692,0.241,4319.2,4319.1,1.14252]
[1759329000892,0.4486,4319.2,4319.1,1.14252]
[1759329001196,0.4586,4320.0,4319.5,0.3079]
[1759329001403,1.0649387,4320.0,4319.9,0.62165]
[1759329001702,0.87643172,4320.0,4319.9,1.14245]
[1759329001899,0.00253172,4320.0,4319.9,1.14245]
[1759329002196,0.24353172,4320.0,4319.9,1.14245]
[1759329002601,0.24353172,4320.0,4319.9,0.726]
[1759329002898,0.1319,4319.5,4318.9,1.04135]
[1759329003100,0.1319,4319.5,4319.3,0.6217]
[1759329003101,0.9832,4319.4,4319.3,0.6217]
[1759329003398,0.9832,4319.4,4319.3,0.8346]
[1759329003601,0.3269,4319.9,4319.3,3.9251]
[1759329003800,0.5345,4319.9,4319.8,0.83456]
[1759329004000,0.7755,4319.9,4319.8,0.41982568]
[1759329004202,0.9832,4319.9,4319.8,0.00172568]
[1759329004500,0.9832,4319.9,4319.3,3.2078]
[1759329004695,0.3269,4319.4,4319.3,3.6243]
[1759329004900,0.7422,4319.4,4319.3,3.6243]
[1759329005100,0.7422,4319.4,4319.3,3.8295]
[1759329005605,0.7422,4319.4,4319.3,3.83157526]
[1759329005803,0.9822,4319.4,4319.3,3.83157526]
[1759329006002,0.9822,4319.4,4319.3,0.00207526]
[1759329006192,0.7422,4319.4,4319.3,0.71937526]
[1759329006505,0.5345,4319.8,4319.7,0.83457]
[1759329007104,0.9822,4319.8,4319.7,0.83457]
[1759329008802,0.7422,4319.8,4319.7,0.83457]
[1759329009001,0.9822,4319.8,4319.7,0.83457]
[1759329009998,0.5472,4319.5,4319.4,0.62169]
[1759329010206,0.8741,4319.5,4319.4,0.83459]
[1759329010508,1.1141,4319.5,4319.4,0.83459]
[1759329013803,4.08443172,4320.0,4319.9,0.83455]
[1759329014109,0.24253172,4320.0,4319.9,1.13375]
[1759329014412,0.77703172,4320.0,4319.9,1.13375]
[1759329014709,1.11663172,4320.0,4319.9,0.83455]
[1759329015211,0.90893172,4320.0,4319.9,1.13375]
[1759329015710,1.11663172,4320.0,4319.9,0.2052]
[1759329015904,0.7422,4319.7,4319.6,3.62428]
[1759329016105,0.7422,4319.7,4319.6,4.34158]
[1759329016305,0.7745,4319.7,4319.6,4.34158]
[1759329016507,0.21013172,4320.0,4319.9,1.13375]
[1759329016706,1.11663172,4320.0,4319.9,0.83455]
[1759329016906,0.00253172,4320.0,4319.9,1.13375]
[1759329017109,0.3269,4320.9,4320.5,0.2129]
[1759329017309,0.3269,4320.9,4320.8,1.13366]
[1759329017514,0.7745,4320.9,4320.8,0.83446]
[1759329018117,0.9822,4320.9,4320.8,0.83447]
[1759329018315,0.53749985,4320.9,4320.8,0.83447]
[1759329018616,0.98519985,4320.9,4320.8,0.83447]
[1759329020507,0.77749985,4320.9,4320.8,1.13327]
[1759329020712,0.74239985,4320.9,4320.8,0.83447]
[1759329020908,0.98239985,4320.9,4320.8,0.83447]
[1759329021218,0.00299985,4320.9,4320.8,1.13327]
[1759329021413,0.24299985,4320.9,4320.8,4.34107]
[1759329021718,9.85e-06,4320.9,4320.8,9.34107]
[1759329021915,0.6651,4322.0,4321.9,1.15066]
[1759329022114,1.11,4322.0,4321.9,0.62746]
[1759329022316,0.87,4322.0,4321.9,0.85186]
[1759329022514,1.11,4322.0,4321.9,0.85186]
[1759329022817,0.4167,4321.8,4321.7,0.62748]
[1759329023022,0.7381,4321.8,4321.7,0.62748]
[1759329023619,0.7381,4321.8,4321.7,0.2112]
[1759329023820,0.73,4321.7,4321.6,0.41628]
[1759329024021,0.73,4321.7,4321.6,0.63948]
[1759329024325,0.65767601,4322.0,4321.9,0.85366]
[1759329024722,0.00277601,4322.0,4321.9,1.15246]
[1759329025026,0.24277601,4322.0,4321.9,6.15246]
[1759329025522,0.00277601,4322.0,4321.9,6.15246]
[1759329025721,0.31637601,4322.0,4321.9,1.15246]
[1759329025925,0.31637601,4322.0,4321.9,0.85366]
[1759329025926,0.85677601,4322.0,4321.9,0.85366]
[1759329026823,0.2094,4321.6,4321.5,3.944]
[1759329027025,0.97,4321.6,4321.5,3.8473]
[1759329027221,0.73,4321.6,4321.5,3.8473]
[1759329027526,0.97,4321.6,4321.5,4.0615]
[1759329027728,0.97,4321.6,4321.5,3.6452]
[1759329028027,0.00277601,4322.0,4321.9,0.2988]
[1759329028226,0.4164,4321.7,4321.6,0.41628]
[1759329028525,0.3136,4321.6,4321.5,3.2078]
[1759329028726,0.73,4321.6,4321.5,3.2078]
[1759329029119,0.73,4321.6,4321.5,3.431]
[1759329029315,0.523,4321.9,4321.8,0.63947]
[1759329029523,0.97,4321.9,4321.8,0.4374]
[1759329030318,0.4164,4321.6,4321.5,3.431]
[1759329030615,0.73,4321.6,4321.5,0.2232]
[1759329030921,0.54317601,4322.0,4321.9,0.2232]
[1759329031123,0.00277601,4322.0,4321.9,0.7362]
[1759329031526,0.24277601,4322.0,4321.9,0.7362]
[1759329031927,0.00277601,4322.0,4321.9,0.7362]
[1759329032122,0.24277601,4322.0,4321.9,0.7362]
[1759329032526,0.55637601,4322.0,4321.9,0.7362]
[1759329032922,0.00277601,4322.0,4321.9,0.7362]
[1759329033232,0.76577601,4322.0,4321.9,0.7362]
[1759329033431,0.24277601,4322.0,4321.9,0.7362]
[1759329035229,0.88977601,4322.0,4321.9,0.4374]
[1759329035418,0.88977601,4322.0,4321.9,0.7362]
[1759329035726,0.24277601,4322.0,4321.9,0.7362]
[1759329035925,0.55637601,4322.0,4321.9,0.7362]
[1759329036225,0.73,4321.8,4321.7,0.41628]
[1759329036420,0.73,4321.7,4321.6,0.63949]
[1759329036727,1.14627,4321.7,4321.6,0.63949]
[1759329037132,1.38627,4321.7,4321.6,0.63949]
[1759329037430,1.14629,4321.6,4321.5,3.2078]
[1759329037729,0.73,4321.6,4321.5,3.2078]
[1759329037923,0.24,4321.6,4321.5,3.944]
[1759329038125,0.24,4321.6,4321.5,4.3603]
[1759329038630,0.763,4321.6,4321.5,4.3603]
[1759329038924,0.763,4321.6,4321.5,4.0615]
[1759329039624,0.763,4321.6,4321.5,3.6452]
[1759329039826,0.763,4321.6,4321.5,4.06149]
[1759329040032,0.5536,4321.6,4321.5,4.36029]
[1759329040227,0.3136,4321.8,4321.7,0.4374]
[1759329040530,0.763,4321.8,4321.7,0.7362]
[1759329040730,0.763,4321.8,4321.7,0.4374]
[1759329041125,0.763,4321.8,4321.7,0.85367]
[1759329041326,0.5536,4321.8,4321.7,1.15247]
[1759329041721,0.763,4321.8,4321.7,0.4374]
[1759329042132,0.97,4321.8,4321.7,0.4374]
[1759329042729,1.38626,4321.8,4321.7,0.4374]
[1759329043633,0.97,4321.8,4321.7,0.85367]
[1759329044227,0.73,4321.8,4321.7,1.15247]
[1759329044434,0.97,4321.8,4321.7,0.85367]
[1759329044734,0.97,4321.8,4321.7,0.63947]
[1759329044930,1.38626,4321.8,4321.7,0.85367]
[1759329045236,0.97,4321.8,4321.7,0.85367]
[1759329045529,0.00277601,4322.0,4321.9,1.15245]
[1759329045734,0.76577601,4322.0,4321.9,1.15245]
[1759329045930,1.51301601,4322.0,4321.9,0.4374]
[1759329046230,1.51301601,4322.0,4321.9,0.2232]
[1759329046428,0.3136,4321.9,4321.8,1.15246]
[1759329046735,0.73,4321.8,4321.7,0.4374]
[1759329047634,0.73,4321.8,4321.5,3.2078]
[1759329047635,0.00277601,4322.0,4321.9,1.15245]
[1759329047828,0.55637601,4322.0,4321.9,1.15245]
[1759329048132,0.31637601,4322.0,4321.9,1.15245]
[1759329048332,0.55637601,4322.0,4321.9,1.15245]
[1759329048732,0.76577601,4322.0,4321.9,1.15245]
[1759329049233,0.88977601,4322.0,4321.9,1.15245]
[1759329049829,0.88977601,4322.0,4321.9,0.7362]
[1759329050128,1.51301601,4322.0,4321.9,0.4374]
[1759329050429,0.00277601,4322.0,4321.9,0.85365]
[1759329050735,0.00277601,4322.0,4321.9,1.97637839]
[1759329051135,0.00277601,4322.0,4321.9,1.9727158]
[1759329051326,0.00277601,4322.0,4321.9,1.15245]
[1759329051632,0.00277601,4322.0,4321.9,1.9728906]
[1759329051828,0.00277601,4322.0,4321.9,1.15245]
[1759329052136,0.00277601,4322.0,4321.9,1.97289511]
[1759329052436,0.6559,4323.0,4322.9,0.4374]
[1759329052735,1.27904,4323.0,4322.9,0.4374]
[1759329052934,1.51904,4323.0,4322.9,0.4374]
[1759329053328,1.52078406,4323.0,4322.9,0.43985867]
[1759329053527,1.52078406,4323.0,4322.9,0.22565867]
[1759329054636,1.52078406,4323.0,4322.9,0.00245867]
[1759329055134,1.52078406,4323.0,4322.9,0.20905867]
[1759329055835,1.52078406,4323.0,4322.9,0.42735867]
[1759329056036,1.28078406,4323.0,4322.9,0.42735867]
[1759329056233,1.52078406,4323.0,4322.9,0.42735867]
[1759329056433,1.28078406,4323.0,4322.9,0.42735867]
[1759329056632,1.52078406,4323.0,4322.9,0.42735867]
[1759329057640,1.52078406,4323.0,4322.9,0.20905867]
[1759329058439,1.52078406,4323.0,4322.9,0.00245867]
[1759329059243,1.52078406,4323.0,4322.9,0.20905867]
[1759329059735,1.28078406,4323.0,4322.9,0.20905867]
[1759329059943,1.52078406,4323.0,4322.9,0.42735867]
[1759329060438,0.52474406,4323.0,4322.9,1.14230867]
[1759329060638,1.52228406,4323.0,4322.9,0.00245867]
[1759329060844,1.10614406,4323.0,4322.9,0.00245867]
[1759329061042,0.86614406,4323.0,4322.9,0.84350867]
[1759329061235,0.76474406,4323.0,4322.9,1.14230867]
[1759329061753,0.65834406,4323.0,4322.9,0.84350867]
[1759329062047,1.52228406,4323.0,4322.9,0.20905867]
[1759329062241,1.52228406,4323.0,4322.9,0.00245867]
[1759329063147,0.86614406,4323.0,4322.9,0.84350867]
[1759329063339,0.00174406,4323.0,4322.9,1.14230867]
[1759329063540,0.24,4323.5,4323.4,0.4161]
[1759329063744,0.5742,4324.0,4323.9,1.13976]
[1759329063940,0.7814,4324.0,4323.9,0.7237]
[1759329064141,0.3342,4324.4,4324.3,0.41601]
[1759329064444,3.3414,4325.5,4323.9,3.9315]
[1759329064445,0.42905851,4325.4,4324.7,0.3338]
[1759329064648,0.415,4325.2,4325.1,3.2078]
[1759329065343,0.24,4325.6,4325.1,3.2078]
[1759329065344,0.1336,4327.5,4326.4,0.4249]
[1759329065546,0.2078,4325.8,4325.7,3.2078]
[1759329065843,0.2078,4325.2,4324.8,3.2078]
[1759329066043,0.1336,4325.5,4324.8,3.4144]
[1759329066044,0.415,4324.9,4324.8,3.4144]
[1759329066246,0.83099,4324.7,4324.6,0.2066]
[1759329066443,0.1336,4324.5,4324.2,0.2066]
[1759329066642,0.83102,4324.3,4324.2,0.00273165]
[1759329066841,0.2072,4324.3,4324.2,0.76143165]
[1759329067041,0.75087457,4324.9,4324.8,0.7587]
[1759329067351,0.99287457,4324.9,4324.8,0.7587]
[1759329067842,0.57787457,4324.9,4324.8,0.7587]
[1759329068150,0.00167457,4324.9,4324.8,0.7587]
[1759329068450,0.24367457,4324.9,4324.8,0.7587]
[1759329068950,0.45087457,4324.9,4324.8,0.7587]
[1759329069152,0.7492,4324.7,4324.6,3.2078]
[1759329069342,1.16522,4324.3,4324.2,0.20933165]
[1759329069543,1.16522,4324.3,4324.2,0.76143165]
[1759329069743,1.40722,4324.3,4324.2,0.76143165]
[1759329069943,1.40722,4324.3,4324.2,0.00273165]
[1759329070144,4.61502,4324.3,4324.2,0.00273165]
[1759329070346,0.4678,4323.0,4322.5,0.4565]
[1759329070542,0.4161,4323.5,4323.0,0.1227]
[1759329070749,0.41614,4323.0,4322.5,0.1227]
[1759329070952,0.242,4322.9,4322.6,0.3338]
[1759329071253,0.242,4322.9,4322.8,3.5416]
[1759329071549,3.542,4323.4,4322.8,3.5416]
[1759329071550,3.2078,4323.4,4323.1,0.3338]
[1759329071742,0.3342,4324.2,4323.4,0.3338]
[1759329071939,0.3342,4324.0,4323.5,0.1227]
[1759329072144,0.1336,4324.0,4323.6,0.3338]
[1759329072347,0.3342,4323.9,4323.6,0.3338]
[1759329072649,0.1336,4324.0,4323.3,3.2078]
[1759329072650,0.3342,4323.4,4323.3,3.2078]
[1759329072845,0.5762,4323.4,4323.3,3.2078]
[1759329073051,0.5762,4323.4,4322.6,0.00163937]
[1759329073052,0.5762,4323.4,4322.9,0.3338]
[1759329073248,0.242,4323.4,4322.9,0.3338]
[1759329073438,3.2078,4323.9,4323.2,3.2078]
[1759329073646,0.41608,4323.7,4323.2,3.2078]
[1759329073948,0.242,4323.6,4323.2,3.2078]
[1759329074149,0.4161,4323.5,4323.2,3.2078]
[1759329074346,0.3342,4323.4,4323.3,0.3338]
[1759329074545,0.5762,4323.6,4323.3,0.3338]
[1759329074746,0.99229,4323.6,4323.3,0.3338]
[1759329074952,0.3342,4323.4,4323.3,0.3338]
[1759329075150,0.41611,4323.3,4323.2,3.2078]
[1759329075446,0.75031,4323.3,4323.2,3.2078]
[1759329075644,0.3342,4323.3,4323.2,3.5416]
[1759329075842,0.3342,4323.5,4323.3,0.3338]
[1759329076149,39.4274,4324.0,4323.3,0.3338]
[1759329076150,0.242,4323.4,4323.3,0.3338]
[1759329076349,0.3342,4323.9,4323.3,0.3338]
[1759329076543,3.2078,4324.0,4323.3,0.3338]
[1759329076746,0.242,4323.8,4323.3,0.3338]
[1759329076944,0.1336,4324.5,4323.2,3.2078]
[1759329076945,0.3342,4323.7,4323.2,3.2078]
[1759329077239,3.2078,4324.6,4324.0,0.53874]
[1759329077240,0.41601,4324.4,4324.0,0.53874]
[1759329077444,0.242,4324.3,4324.0,0.1227]
[1759329077748,0.242,4324.3,4324.1,0.3338]
[1759329077749,0.242,4324.2,4324.1,0.3338]
[1759329079050,0.5762,4324.2,4324.1,0.3338]
[1759329079354,3.2078,4324.6,4324.5,0.4565]
[1759329079552,3.4498,4324.6,4324.5,0.4565]
[1759329079950,0.242,4324.6,4324.5,0.4565]
[1759329080353,0.41595,4325.0,4324.6,0.3203]
[1759329080550,0.242,4324.8,4324.7,0.73627]
[1759329080851,0.00167457,4324.9,4324.8,3.5281]
[1759329081049,0.24367457,4324.9,4324.8,3.5281]
[1759329081851,0.56907457,4324.9,4324.3,3.5281]
[1759329082152,0.242,4324.8,4324.5,0.54039]
[1759329082346,0.00167457,4324.9,4324.8,0.3203]
[1759329082551,0.00167457,4324.9,4324.8,3.5281]
[1759329082748,0.242,4325.5,4325.4,0.41591]
[1759329082955,0.41586,4326.0,4325.8,0.3203]
[1759329083154,0.242,4325.9,4325.8,0.41587]
[1759329083454,0.242,4325.9,4325.5,0.1244]
[1759329083650,0.242,4325.9,4325.5,0.5403]
[1759329083850,0.41589,4325.7,4325.6,0.3334]
[1759329084351,0.66013714,4325.9,4325.6,0.41589]
[1759329084557,0.66013714,4325.9,4325.5,0.12684496]
[1759329084558,3.2078,4326.9,4326.5,0.1324]
[1759329084753,0.242,4328.1,4327.5,0.1324]
[1759329085049,0.1348,4329.0,4327.8,3.2078]
[1759329085050,0.3395,4327.9,4327.8,3.2078]
[1759329085250,0.3175,4327.4,4327.1,3.5412]
[1759329085449,3.2078,4327.8,4327.2,0.3334]
[1759329085647,0.00293089,4327.4,4327.2,0.3334]
[1759329085853,0.32043089,4327.4,4327.3,3.2078]
[1759329086060,0.41575,4327.2,4326.8,3.2078]
[1759329086349,0.00293089,4327.4,4326.8,3.2078]
[1759329086555,0.243,4327.3,4327.0,0.1324]
[1759329086754,0.00293089,4327.4,4327.3,3.5412]
[1759329087259,0.24693089,4327.4,4327.3,3.5412]
[1759329088360,0.56443089,4327.4,4327.3,3.5412]
[1759329088563,0.32043089,4327.4,4327.3,3.2078]
[1759329088753,0.24693089,4327.4,4327.3,3.5412]
[1759329089156,0.56443089,4327.4,4327.3,3.2078]
[1759329089454,0.32043089,4327.4,4327.3,3.2078]
[1759329089656,0.32043089,4327.4,4327.3,3.5412]
[1759329089857,0.56443089,4327.4,4327.3,3.5412]
[1759329090257,0.00293089,4327.4,4327.3,3.5412]
[1759329090458,0.24693089,4327.4,4327.3,3.5412]
[1759329090660,0.56443089,4327.4,4327.3,3.2078]
[1759329091253,0.56443089,4327.4,4326.8,0.3334]
[1759329091254,0.3175,4326.9,4326.8,3.2078]
[1759329091758,0.3175,4326.9,4326.8,3.5412]
[1759329092062,0.5615,4326.9,4326.8,3.5412]
[1759329092264,0.5615,4326.9,4326.8,3.2078]
[1759329093165,0.41582,4326.4,4326.3,3.5412]
[1759329093458,0.73336,4326.0,4325.9,0.3334]
[1759329093657,0.3175,4325.9,4325.8,3.2078]
[1759329093856,0.73339,4325.6,4325.5,0.00244496]
[1759329094057,40.00819,4325.6,4325.5,0.00244496]
[1759329094257,45.00819,4325.6,4325.5,0.00244496]
[1759329094464,8.94119,4325.6,4325.5,0.00244496]
[1759329094764,45.25119,4325.6,4325.5,0.00244496]
[1759329096162,0.73347,4324.8,4324.7,3.2078]
[1759329096362,4.18527,4324.8,4324.7,3.2078]
[1759329096561,4.18527,4324.8,4324.1,3.2078]
[1759329096562,1.03996,4324.7,4324.1,3.2078]
[1759329096764,3.2078,4324.7,4324.1,3.5412]
[1759329096961,3.4518,4324.6,4324.2,0.3334]
[1759329097161,0.5615,4324.6,4324.5,3.5412]
[1759329097359,0.244,4324.6,4324.5,3.5412]
[1759329097563,3.4518,4324.6,4324.5,3.5412]
[1759329097763,3.2078,4324.6,4324.5,3.5412]
[1759329098267,3.4518,4324.6,4324.5,3.5412]
[1759329098455,3.7693,4324.6,4324.5,3.2078]
[1759329099063,0.73352,4324.3,4324.2,0.00272263]
[1759329099358,3.52699531,4324.3,4324.2,0.33612263]
[1759329099562,3.20949531,4324.3,4324.2,0.33612263]
[1759329099867,3.45349531,4324.3,4324.2,0.33612263]
[1759329100169,3.77099531,4324.3,4324.2,0.00272263]
[1759329100865,3.20949531,4324.3,4324.2,0.33612263]
[1759329101065,0.41595,4325.0,4324.2,5.00272263]
[1759329101367,3.86776,4324.9,4324.8,0.3334]
[1759329101665,0.65996,4324.9,4324.8,0.3334]
[1759329102065,0.66160308,4324.9,4324.8,0.3334]
[1759329102267,0.41760308,4324.9,4324.8,0.3334]
[1759329102466,0.66160308,4324.9,4324.8,0.3334]
[1759329102869,0.97910308,4324.9,4324.8,0.3334]
[1759329103065,0.3175,4324.8,4324.7,3.2078]
[1759329103262,3.5253,4324.8,4324.7,3.2078]
[1759329103566,0.3175,4324.4,4324.2,0.00272263]
[1759329103767,4.18531,4324.3,4324.2,0.00272263]
[1759329104667,9.18531,4324.3,4324.2,0.00272263]
[1759329104869,0.86839,4323.5,4323.4,3.2078]
[1759329105165,1.11239,4323.5,4323.4,3.2078]
[1759329105370,1.04027,4323.4,4322.9,3.2078]
[1759329105670,0.73363,4323.1,4323.0,0.3334]
[1759329105869,0.97763,4323.1,4323.0,0.33574914]
[1759329106065,4.18543,4323.1,4323.0,0.00234914]
[1759329107170,3.2078,4323.1,4323.0,0.33574914]
[1759329107478,3.4518,4323.1,4323.0,0.33574914]
[1759329107673,3.4518,4323.1,4323.0,0.00234914]
[1759329107674,3.7693,4323.1,4323.0,0.00234914]
[1759329107971,3.7693,4323.1,4322.9,3.2078]
[1759329108278,0.86849,4322.5,4322.4,3.2078]
[1759329108473,1.11249,4322.5,4322.4,3.2078]
[1759329108672,4.32029,4322.5,4322.4,3.2078]
[1759329109076,4.32029,4322.5,4322.4,3.20987897]
[1759329109579,4.32029,4322.5,4322.4,0.00207897]
[1759329109879,4.07629,4322.5,4322.4,0.00207897]
[1759329110080,4.18549,4322.5,4322.4,0.33547897]
[1759329110379,4.18549,4322.5,4322.4,0.00207897]
[1759329110766,4.32029,4322.5,4322.4,0.00207897]
[1759329111171,4.07629,4322.5,4322.4,0.00207897]